bitfinex/quotes_BTCUSD_20241223
["timestamp","ask_amount","ask_price","bid_price","bid_amount"]
[1734925031331,0.209764,95345.0,95330.0,0.19029403]
[1734925031866,0.419529,95345.0,95330.0,0.19029403]
[1734925032314,0.209764,95345.0,95330.0,0.40009103]
[1734925032573,0.209754,95350.0,95330.0,0.40009103]
[1734925032775,0.209754,95350.0,95331.0,0.02099375]
[1734925032933,0.209754,95350.0,95330.0,0.40309103]
[1734925033342,0.209754,95350.0,95330.0,0.63369695]
[1734925033546,0.209754,95350.0,95330.0,0.42089995]
[1734925033703,0.209764,95345.0,95330.0,0.29489995]
[1734925034105,0.209764,95345.0,95330.0,0.08510295]
[1734925034311,0.209764,95345.0,95330.0,0.29489895]
[1734925034908,0.009,95345.0,95336.0,0.209782]
[1734925035109,0.009,95345.0,95332.0,0.209793]
[1734925035317,0.009,95345.0,95334.0,0.209788]
[1734925035518,0.009,95345.0,95334.0,0.3110964]
[1734925035721,0.009,95345.0,95334.0,0.1013084]
[1734925036152,0.209754,95350.0,95330.0,0.03798158]
[1734925036353,0.001311,95349.0,95332.0,0.007]
[1734925036560,0.209768,95343.0,95332.0,0.007]
[1734925036760,0.209768,95343.0,95330.0,0.21110295]
[1734925036967,0.209768,95343.0,95330.0,0.02080892]
[1734925038036,0.209768,95343.0,95334.0,0.007]
[1734925038243,0.209768,95343.0,95330.0,0.02080892]
[1734925038632,0.216768,95343.0,95330.0,0.02180892]
[1734925039215,0.209795,95331.0,95330.0,0.001]
[1734925039391,0.209795,95331.0,95325.0,0.01718667]
[1734925039594,0.419592,95331.0,95330.0,0.001]
[1734925039802,0.419592,95331.0,95324.0,0.01764993]
[1734925039803,0.209795,95331.0,95324.0,0.01764993]
[1734925040032,0.209808,95325.0,95324.0,0.00016093]
[1734925041843,0.209808,95325.0,95324.0,0.00216093]
[1734925042686,0.209808,95325.0,95324.0,0.00016093]
[1734925043006,0.209808,95325.0,95324.0,0.00216093]
[1734925043309,0.209808,95325.0,95324.0,0.00016093]
[1734925043592,0.3111164,95325.0,95324.0,0.00016093]
[1734925044026,0.0001714,95346.0,95325.0,0.15]
[1734925044236,0.0001714,95346.0,95344.0,0.209766]
[1734925044445,0.09301477,95360.0,95345.0,0.1013084]
[1734925044651,0.09301477,95360.0,95346.0,0.359761]
[1734925044857,0.09301477,95360.0,95349.0,0.15]
[1734925045096,0.09301477,95360.0,95350.0,0.3110614]
[1734925045314,0.209677,95385.0,95351.0,0.15]
[1734925045519,0.17131477,95387.0,95353.0,0.15]
[1734925045727,0.419356,95384.0,95362.0,0.209724]
[1734925045924,0.419356,95384.0,95364.0,0.209722]
[1734925046136,0.209678,95384.0,95364.0,0.209722]
[1734925046379,0.209678,95384.0,95368.0,0.02111502]
[1734925046928,0.20983926,95384.0,95369.0,0.209711]
[1734925047142,0.00016126,95384.0,95375.0,0.209698]
[1734925047811,0.00016126,95384.0,95371.0,0.15]
[1734925048010,0.00316126,95384.0,95378.0,0.209689]
[1734925048344,0.00816126,95384.0,95375.0,0.001]
[1734925048742,0.00016126,95384.0,95379.0,0.209689]
[1734925048946,0.00416126,95384.0,95381.0,0.209685]
[1734925049269,0.00416126,95384.0,95353.0,0.091136]
[1734925049270,0.00016126,95384.0,95353.0,0.091136]
[1734925049471,0.209695,95377.0,95361.0,0.15]
[1734925049646,0.0013106,95376.0,95354.0,0.15]
[1734925049852,0.209707,95371.0,95359.0,0.02079149]
[1734925050307,0.209707,95371.0,95361.0,0.15]
[1734925050515,0.209707,95371.0,95360.0,0.19014172]
[1734925051867,0.215707,95371.0,95360.0,0.19014172]
[1734925052066,0.209707,95371.0,95359.0,0.02079149]
[1734925052294,0.209689,95379.0,95360.0,0.39987272]
[1734925052498,0.007,95371.0,95369.0,0.19014172]
[1734925052701,0.007,95371.0,95361.0,0.39986972]
[1734925052902,0.007,95371.0,95367.0,0.209714]
[1734925053106,0.007,95371.0,95362.0,0.3110354]
[1734925053706,0.20968,95383.0,95363.0,0.083724]
[1734925053919,0.20968,95383.0,95363.0,0.1013084]
[1734925054122,0.006,95371.0,95363.0,0.1013084]
[1734925054717,0.011,95371.0,95363.0,0.1013084]
[1734925054918,0.209684,95382.0,95364.0,0.209722]
[1734925055129,0.00033266,95384.0,95364.0,0.209722]
[1734925055344,0.006,95371.0,95364.0,0.419444]
[1734925055672,0.00033266,95384.0,95372.0,0.209704]
[1734925055896,0.00033266,95384.0,95373.0,0.1013084]
[1734925057597,0.00033266,95384.0,95373.0,0.1053084]
[1734925057933,0.00033266,95384.0,95373.0,0.1013084]
[1734925058141,0.00033266,95384.0,95373.0,0.3150094]
[1734925058373,0.00033266,95384.0,95373.0,0.3110094]
[1734925058570,0.00033266,95384.0,95359.0,0.02079149]
[1734925058571,0.2097,95374.0,95359.0,0.02079149]
[1734925058777,0.209716,95368.0,95359.0,0.01731813]
[1734925059128,0.209716,95368.0,95350.0,0.19014172]
[1734925059313,0.209716,95368.0,95354.0,0.02135646]
[1734925059456,0.2097,95374.0,95350.0,0.19014172]
[1734925059457,0.209728,95362.0,95350.0,0.19014172]
[1734925060269,0.209728,95362.0,95351.0,0.15]
[1734925060447,0.209716,95367.0,95353.0,0.02135016]
[1734925060651,0.419401,95374.0,95358.0,0.209735]
[1734925060923,0.004,95362.0,95359.0,0.1013084]
[1734925061123,0.00033266,95384.0,95366.0,0.209717]
[1734925061292,0.00033266,95384.0,95367.0,0.1013084]
[1734925061499,0.0001714,95371.0,95368.0,0.209713]
[1734925061693,0.0001714,95371.0,95370.0,0.209709]
[1734925061896,0.0001714,95371.0,95370.0,0.5084174]
[1734925062081,0.0001714,95371.0,95370.0,0.52556359]
[1734925063324,1e-08,95384.0,95371.0,0.1]
[1734925063530,1e-08,95384.0,95383.0,0.20968]
[1734925063726,1e-08,95384.0,95383.0,0.3109884]
[1734925065338,0.00100001,95384.0,95383.0,0.3199884]
[1734925066574,1e-08,95384.0,95383.0,0.1013084]
[1734925066727,1e-08,95384.0,95373.0,0.15]
[1734925067091,1e-08,95384.0,95375.0,0.15]
[1734925067299,1e-08,95384.0,95370.0,0.21125046]
[1734925067300,1e-08,95384.0,95373.0,0.01726992]
[1734925067497,0.00100001,95384.0,95383.0,0.009]
[1734925067917,0.20968,95383.0,95370.0,0.21125046]
[1734925068125,1e-08,95384.0,95371.0,0.4610154]
[1734925069309,1e-08,95384.0,95371.0,0.2513084]
[1734925069514,1e-08,95384.0,95371.0,0.1013084]
[1734925069737,1e-08,95384.0,95383.0,0.004]
[1734925069945,1e-08,95384.0,95370.0,0.02110874]
[1734925070113,1e-08,95384.0,95371.0,0.209707]
[1734925070337,0.00800001,95384.0,95371.0,0.420414]
[1734925070741,1e-08,95384.0,95371.0,0.419414]
[1734925070938,1e-08,95384.0,95383.0,0.004]
[1734925071139,1e-08,95384.0,95383.0,0.4609884]
[1734925071541,0.00900001,95384.0,95383.0,0.4609884]
[1734925071958,0.00900001,95384.0,95383.0,0.4839884]
[1734925072782,1e-08,95384.0,95383.0,0.4839884]
[1734925072970,1e-08,95384.0,95383.0,0.50109949]
[1734925073128,0.00100001,95384.0,95383.0,0.50909949]
[1734925073329,0.00100001,95384.0,95383.0,0.50109949]
[1734925073642,0.01000001,95384.0,95383.0,0.50209949]
[1734925074259,0.01000001,95384.0,95383.0,1.13809949]
[1734925074475,0.0785714,95426.0,95398.0,0.1]
[1734925074678,0.0001714,95426.0,95407.0,0.359628]
[1734925074902,0.0001714,95426.0,95407.0,0.4839364]
[1734925075773,0.0001714,95426.0,95420.0,0.359599]
[1734925075998,0.00070862,95421.0,95420.0,0.4609074]
[1734925077282,0.00070862,95421.0,95420.0,0.2513084]
[1734925077911,0.00070862,95421.0,95420.0,0.2993131]
[1734925079193,0.00070862,95421.0,95420.0,0.2903131]
[1734925079598,0.00070862,95421.0,95420.0,0.2993131]
[1734925079818,0.00070862,95421.0,95420.0,0.2903131]
[1734925079958,1e-08,95421.0,95420.0,0.2913131]
[1734925080169,0.00100001,95421.0,95420.0,0.2913131]
[1734925080457,1e-08,95421.0,95420.0,0.2903131]
[1734925080832,1e-08,95421.0,95420.0,0.3143131]
[1734925081044,0.00013141,95426.0,95420.0,0.3133131]
[1734925081256,0.0797,95459.0,95431.0,0.25]
[1734925081482,0.0479712,95467.0,95444.0,0.15]
[1734925081696,0.00033236,95450.0,95449.0,0.209535]
[1734925081893,0.00033236,95450.0,95449.0,0.4608434]
[1734925083152,0.00033236,95450.0,95449.0,0.4698434]
[1734925084597,0.00033236,95450.0,95449.0,0.49126117]
[1734925085452,0.00033236,95450.0,95449.0,0.5320988]
[1734925085993,0.00033236,95450.0,95449.0,1.1680988]
[1734925086197,0.0001712,95467.0,95465.0,0.1]
[1734925086395,0.0001712,95487.0,95478.0,0.209472]
[1734925086624,0.00033244,95480.0,95479.0,0.2513084]
[1734925086958,0.00033244,95480.0,95479.0,0.31642143]
[1734925087934,0.00033244,95480.0,95479.0,0.337472]
[1734925089290,0.00033244,95480.0,95479.0,0.460472]
[1734925089732,0.0491,95516.0,95479.0,0.460472]
[1734925089733,0.0828,95515.0,95482.0,0.273]
[1734925089902,0.0828,95515.0,95493.0,0.209437]
[1734925090237,0.0828,95527.0,95496.0,0.9103084]
[1734925090366,0.0828,95527.0,95496.0,0.8103084]
[1734925090568,0.0828,95527.0,95496.0,0.7873084]
[1734925090569,0.00130852,95526.0,95496.0,0.7873084]
[1734925090772,0.2095582,95517.0,95496.0,0.7873084]
[1734925090997,0.0001712,95517.0,95496.0,0.7873084]
[1734925091569,0.0001712,95517.0,95496.0,0.97858809]
[1734925093299,0.0001712,95517.0,95496.0,0.99441076]
[1734925093511,0.0001712,95517.0,95496.0,0.99541076]
[1734925093717,0.0001712,95517.0,95496.0,0.99441076]
[1734925093927,0.0001712,95517.0,95496.0,0.91552318]
[1734925094132,0.0001712,95517.0,95496.0,1.01652318]
[1734925094352,0.0001712,95517.0,95514.0,0.209393]
[1734925094559,0.00070789,95517.0,95515.0,0.28885295]
[1734925094759,0.00070789,95517.0,95515.0,0.32006493]
[1734925095172,0.00070789,95517.0,95516.0,0.209389]
[1734925095373,0.00070789,95517.0,95516.0,0.52945393]
[1734925095746,0.00070789,95517.0,95516.0,0.49824195]
[1734925096027,0.00070789,95517.0,95516.0,0.28885295]
[1734925096175,0.00070789,95517.0,95515.0,0.009]
[1734925096380,0.00070789,95517.0,95490.0,0.19014172]
[1734925096381,0.0751,95516.0,95502.0,0.15]
[1734925096589,0.0751,95516.0,95490.0,0.19014172]
[1734925096590,0.0751,95516.0,95511.0,0.0209186]
[1734925096967,0.209391,95515.0,95511.0,0.0209186]
[1734925097168,0.00070789,95517.0,95511.0,0.0209186]
[1734925097397,0.00070789,95517.0,95511.0,0.05846315]
[1734925097893,0.00070789,95517.0,95512.0,0.1013084]
[1734925099237,0.00070789,95517.0,95513.0,0.418788]
[1734925099485,0.00070789,95517.0,95514.0,0.1013084]
[1734925099693,0.00070789,95517.0,95514.0,0.13885295]
[1734925099813,0.00070789,95517.0,95514.0,0.1013084]
[1734925100014,0.00070789,95517.0,95513.0,0.1847014]
[1734925100393,0.00070789,95517.0,95512.0,0.209397]
[1734925100642,0.00070789,95517.0,95512.0,0.3107054]
[1734925101058,0.00070789,95517.0,95512.0,0.1013084]
[1734925101258,0.00070789,95517.0,95511.0,0.0209186]
[1734925102974,0.00070789,95517.0,95512.0,0.1013084]
[1734925103550,0.00070789,95517.0,95513.0,0.209393]
[1734925103701,0.00070789,95517.0,95514.0,0.1013084]
[1734925104192,0.00070789,95517.0,95515.0,0.209391]
[1734925104392,0.00070789,95517.0,95516.0,0.1013084]
[1734925104821,0.00070789,95517.0,95511.0,0.0209186]
[1734925105552,0.00070789,95517.0,95512.0,0.5211024]
[1734925105764,0.00070789,95517.0,95512.0,0.5201024]
[1734925106164,0.00070789,95517.0,95514.0,0.209393]
[1734925106457,0.00070789,95517.0,95516.0,0.209389]
[1734925106801,0.00070789,95517.0,95516.0,0.3106974]
[1734925107364,0.00070789,95517.0,95516.0,0.4606974]
[1734925107538,0.00070789,95517.0,95516.0,0.49190938]
[1734925107980,0.0794,95540.0,95531.0,0.209354]
[1734925108188,0.0794,95540.0,95532.0,0.03121198]
[1734925108715,0.0794,95540.0,95533.0,0.209351]
[1734925108927,0.0794,95540.0,95532.0,0.03121198]
[1734925109122,0.0794,95540.0,95531.0,0.209354]
[1734925109476,0.0794,95540.0,95527.0,0.418728]
[1734925109682,0.0794,95540.0,95529.0,0.20936]
[1734925109881,0.0794,95540.0,95529.0,0.3106684]
[1734925110075,0.0794,95540.0,95515.0,0.15]
[1734925110283,0.0794,95540.0,95500.0,0.19014172]
[1734925110284,0.0013083,95539.0,95524.0,0.02140625]
[1734925110705,0.20934,95538.0,95524.0,0.02140625]
[1734925110905,0.0794,95540.0,95524.0,0.02140625]
[1734925111314,0.498075,95540.0,95524.0,0.02140625]
[1734925111515,0.0794,95540.0,95524.0,0.02140625]
[1734925111716,0.209338,95539.0,95527.0,0.002]
[1734925111954,0.209338,95539.0,95524.0,0.02140625]
[1734925112380,0.209338,95539.0,95525.0,0.209369]
[1734925112709,0.209338,95539.0,95524.0,0.02340625]
[1734925112915,0.209338,95539.0,95527.0,0.001]
[1734925114015,0.1237,95531.0,95527.0,0.001]
[1734925114216,0.07760857,95530.0,95527.0,0.001]
[1734925114327,0.07760857,95530.0,95527.0,1.001]
[1734925114770,0.07760857,95530.0,95527.0,1.0]
[1734925114979,0.38827497,95530.0,95527.0,1.001]
[1734925115320,0.0763,95528.0,95527.0,1.0]
[1734925115534,0.3869704,95528.0,95527.0,1.0]
[1734925115734,0.3869704,95528.0,95527.0,1.002]
[1734925116312,0.3869704,95528.0,95527.0,1.003]
[1734925116542,0.3869704,95528.0,95527.0,1.0]
[1734925116743,0.3869704,95528.0,95527.0,0.9219]
[1734925116947,0.6843704,95528.0,95527.0,0.9219]
[1734925117144,0.7073704,95528.0,95527.0,0.7938]
[1734925117697,0.72220794,95528.0,95527.0,0.7938]
[1734925118784,0.72220794,95528.0,95527.0,0.6678]
[1734925122332,0.82220794,95528.0,95527.0,0.6678]
[1734925122761,0.79920794,95528.0,95527.0,0.6678]
[1734925122963,0.6843704,95528.0,95527.0,0.6678]
[1734925123849,0.6843704,95528.0,95527.0,0.5418]
[1734925126018,0.6843704,95528.0,95527.0,0.43712]
[1734925126219,0.6843704,95528.0,95527.0,0.41187237]
[1734925126220,0.7843704,95528.0,95527.0,0.41187237]
[1734925126443,0.8073704,95528.0,95527.0,0.32812837]
[1734925126683,0.8073704,95528.0,95527.0,0.05099237]
[1734925127262,0.209428,95498.0,95497.0,0.000171]
[1734925127475,0.3107364,95498.0,95497.0,0.000171]
[1734925128689,0.3107364,95498.0,95497.0,0.00070769]
[1734925129293,0.3107364,95498.0,95497.0,0.00970769]
[1734925132146,0.3107364,95498.0,95497.0,0.00070769]
[1734925132541,0.3117364,95498.0,95497.0,0.00070769]
[1734925132740,0.3107364,95498.0,95497.0,0.00070769]
[1734925134384,0.5627364,95498.0,95497.0,0.00070769]
[1734925134764,0.5627364,95498.0,95497.0,6.9e-07]
[1734925134965,0.6607364,95498.0,95497.0,6.9e-07]
[1734925135165,0.209527,95453.0,95452.0,0.076]
[1734925135371,0.209527,95453.0,95452.0,0.00016104]
[1734925135551,0.5608354,95453.0,95452.0,4e-08]
[1734925137307,0.57603003,95453.0,95452.0,4e-08]
[1734925137985,0.57603003,95453.0,95452.0,0.00400004]
[1734925138216,0.57603003,95453.0,95452.0,4e-08]
[1734925138422,0.57603003,95453.0,95452.0,0.00100004]
[1734925138655,0.58003003,95453.0,95452.0,0.00100004]
[1734925138864,0.209587,95426.0,95415.0,0.01541182]
[1734925139273,0.209587,95426.0,95415.0,0.01557298]
[1734925139404,0.209587,95426.0,95415.0,0.0307736]
[1734925139606,0.209589,95425.0,95415.0,0.0307736]
[1734925139820,0.19014172,95450.0,95416.0,0.15]
[1734925140021,0.209556,95440.0,95418.0,0.15]
[1734925140255,0.004,95453.0,95422.0,0.1]
[1734925140449,0.209529,95452.0,95430.0,0.209576]
[1734925140613,0.209529,95452.0,95431.0,0.1013084]
[1734925141054,0.209544,95446.0,95431.0,0.1013084]
[1734925141403,0.209529,95452.0,95432.0,0.209573]
[1734925141588,0.209529,95452.0,95432.0,0.1013084]
[1734925141791,0.209529,95452.0,95437.0,0.1283]
[1734925141992,0.209508,95462.0,95446.0,0.20954]
[1734925142283,0.209522,95456.0,95440.0,0.19014172]
[1734925142457,0.209508,95462.0,95441.0,0.1013084]
[1734925142676,0.00130944,95461.0,95437.0,0.1283]
[1734925142989,0.00130952,95474.0,95440.0,0.19014172]
[1734925143129,0.209485,95472.0,95442.0,0.0823]
[1734925143330,0.209505,95464.0,95443.0,0.209549]
[1734925143552,0.01517067,95490.0,95452.0,0.046]
[1734925143752,0.1209,95501.0,95452.0,0.1473084]
[1734925143753,0.209486,95472.0,95452.0,0.1473084]
[1734925143956,0.209515,95459.0,95452.0,0.046]
[1734925144416,0.00130946,95458.0,95452.0,0.046]
[1734925144619,0.209518,95457.0,95452.0,0.046]
[1734925144981,0.209518,95457.0,95452.0,0.06083982]
[1734925145188,0.209508,95462.0,95452.0,0.06083982]
[1734925145365,0.209508,95462.0,95452.0,0.06783982]
[1734925145591,0.209523,95455.0,95452.0,0.06783982]
[1734925145774,0.209509,95461.0,95452.0,0.06783982]
[1734925146869,0.209509,95461.0,95452.0,0.06083982]
[1734925147588,0.209509,95461.0,95452.0,0.06783982]
[1734925147786,0.209509,95461.0,95452.0,0.06083982]
[1734925147940,0.209506,95463.0,95452.0,0.06783982]
[1734925148325,0.20952,95457.0,95452.0,0.06083982]
[1734925148525,0.20952,95457.0,95452.0,0.06583982]
[1734925148738,0.41904,95457.0,95451.0,0.02213982]
[1734925149001,0.41904,95457.0,95451.0,0.03645888]
[1734925149180,0.00130951,95456.0,95451.0,0.01431906]
[1734925149381,0.209522,95455.0,95440.0,0.00033216]
[1734925149587,0.209525,95454.0,95442.0,0.02077345]
[1734925149975,0.209544,95446.0,95442.0,0.02077345]
[1734925150187,0.419088,95446.0,95440.0,0.00033216]
[1734925150378,0.209546,95444.0,95440.0,0.00033216]
[1734925150750,0.209551,95442.0,95440.0,0.00033216]
[1734925151028,0.0013099,95441.0,95440.0,0.00033216]
[1734925151226,0.209551,95442.0,95440.0,0.00033216]
[1734925152414,0.001,95444.0,95440.0,0.00033216]
[1734925152415,0.209549,95443.0,95440.0,0.00033216]
[1734925153470,0.001,95441.0,95440.0,0.00933216]
[1734925153673,0.209536,95449.0,95440.0,0.00033216]
[1734925153821,0.209536,95449.0,95440.0,0.00433216]
[1734925154665,0.209536,95449.0,95440.0,0.00033216]
[1734925155186,0.20955,95443.0,95440.0,0.00333216]
[1734925155306,0.209536,95449.0,95440.0,0.00333216]
[1734925155955,0.209498,95466.0,95440.0,0.00333216]
[1734925156159,0.209549,95443.0,95440.0,0.00333216]
[1734925156358,0.209549,95443.0,95440.0,0.00033216]
[1734925156530,0.00130967,95442.0,95440.0,0.00433216]
[1734925156734,0.209553,95441.0,95440.0,0.00433216]
[1734925156936,0.209553,95441.0,95440.0,0.00033216]
[1734925157461,0.3108614,95441.0,95440.0,0.00033216]
[1734925158023,0.3108614,95441.0,95440.0,0.00533216]
[1734925158390,0.3108614,95441.0,95440.0,0.00033216]
[1734925161231,0.3058614,95441.0,95440.0,0.00033216]
[1734925165815,0.204553,95441.0,95440.0,0.00033216]
[1734925165972,0.20586279,95441.0,95440.0,0.00033216]
[1734925166695,0.209549,95443.0,95440.0,0.00033216]
[1734925167755,0.209549,95443.0,95440.0,0.00233216]
[1734925168797,0.209548,95444.0,95431.0,0.01726663]
[1734925168971,0.209568,95435.0,95431.0,0.01726663]
[1734925169176,0.419136,95435.0,95431.0,0.01726663]
[1734925169399,0.209599,95421.0,95415.0,0.01781483]
[1734925169603,0.077,95441.0,95415.0,0.01781483]
[1734925169924,0.2096,95420.0,95415.0,0.01781483]
[1734925170326,0.209573,95432.0,95431.0,0.002]
[1734925170541,0.3108814,95432.0,95415.0,0.0001712]
[1734925170747,0.209608,95416.0,95415.0,0.0001712]
[1734925173183,0.210608,95416.0,95415.0,0.0071712]
[1734925174366,0.001,95416.0,95415.0,0.0071712]
[1734925175597,0.001,95416.0,95415.0,0.14894426]
[1734925175830,0.001,95416.0,95415.0,0.1311712]
[1734925178100,0.001,95416.0,95415.0,0.15163792]
[1734925178475,0.001,95416.0,95415.0,0.31888343]
[1734925178858,0.001,95416.0,95415.0,0.29419183]
[1734925179512,0.001,95416.0,95415.0,0.31719183]
[1734925180452,0.209553,95442.0,95422.0,0.209593]
[1734925180453,0.419106,95442.0,95422.0,0.209593]
[1734925181862,0.209553,95442.0,95427.0,0.209582]
[1734925182073,0.00016089,95443.0,95427.0,0.419165]
[1734925182619,0.00016089,95443.0,95437.0,0.20956]
[1734925182993,0.009,95442.0,95437.0,0.20956]
[1734925183177,0.00016089,95443.0,95437.0,0.20956]
[1734925183761,0.00016089,95443.0,95441.0,0.173]
[1734925184000,8.56e-05,95451.0,95443.0,0.209549]
[1734925184207,8.56e-05,95451.0,95445.0,0.023]
[1734925184353,8.56e-05,95451.0,95450.0,0.209533]
[1734925184562,8.56e-05,95451.0,95450.0,0.3338414]
[1734925185023,8.56e-05,95451.0,95450.0,0.5338414]
[1734925185222,0.09301477,95489.0,95454.0,0.232525]
[1734925185427,0.209436,95495.0,95458.0,0.1]
[1734925185639,0.2095971,95495.0,95475.0,0.209476]
[1734925185851,0.0001611,95495.0,95477.0,0.209472]
[1734925186250,0.0001611,95495.0,95484.0,0.209459]
[1734925186424,0.0001611,95495.0,95479.0,0.023]
[1734925186627,0.0001611,95495.0,95481.0,0.209465]
[1734925186827,0.0001611,95495.0,95483.0,0.209461]
[1734925187089,0.0001611,95495.0,95483.0,0.3107694]
[1734925187621,0.0011611,95495.0,95489.0,0.2300904]
[1734925187828,0.0011611,95495.0,95489.0,0.4395384]
[1734925188169,0.0011611,95495.0,95493.0,0.023]
[1734925188389,0.0011611,95495.0,95494.0,0.2743084]
[1734925188590,0.0011611,95495.0,95494.0,0.1243084]
[1734925188811,0.0001611,95495.0,95489.0,0.0206434]
[1734925189250,0.0071611,95495.0,95489.0,0.0206434]
[1734925189835,0.0121611,95495.0,95489.0,0.0206434]
[1734925190036,0.0051611,95495.0,95490.0,0.023]
[1734925190672,0.0001611,95495.0,95490.0,0.023]
[1734925192042,0.0071611,95495.0,95490.0,0.023]
[1734925192169,0.0001611,95495.0,95490.0,0.023]
[1734925192600,0.0001611,95495.0,95490.0,0.029]
[1734925192775,0.0001611,95495.0,95490.0,0.023]
[1734925193197,0.0011611,95495.0,95490.0,0.03]
[1734925193574,0.0001611,95495.0,95490.0,0.023]
[1734925193782,0.0001611,95495.0,95490.0,0.028]
[1734925194173,0.0001611,95495.0,95492.0,0.173]
[1734925194374,0.2094515,95527.0,95511.0,0.023]
[1734925194619,0.20999219,95525.0,95511.0,0.023]
[1734925195427,0.41936219,95525.0,95513.0,0.023]
[1734925196212,0.20999219,95525.0,95513.0,0.023]
[1734925196605,0.20999219,95525.0,95513.0,0.025]
[1734925197168,0.00062219,95525.0,95513.0,0.025]
[1734925197377,0.209373,95523.0,95513.0,0.025]
[1734925198332,0.209373,95523.0,95513.0,0.023]
[1734925198533,0.209373,95523.0,95513.0,0.024]
[1734925198833,0.418748,95523.0,95514.0,0.023]
[1734925199090,0.209375,95522.0,95514.0,0.023]
[1734925199699,0.20939,95516.0,95514.0,0.023]
[1734925200161,0.00062219,95525.0,95515.0,0.1013084]
[1734925200769,0.209371,95524.0,95515.0,0.1013084]
[1734925200959,0.00062219,95525.0,95514.0,0.0403842]
[1734925201381,0.209371,95524.0,95514.0,0.0423842]
[1734925201553,0.209371,95524.0,95514.0,0.0403842]
[1734925201931,0.418742,95524.0,95514.0,0.0403842]
[1734925202127,0.209385,95518.0,95514.0,0.0403842]
[1734925202339,0.209385,95518.0,95515.0,0.001]
[1734925202340,0.418771,95518.0,95515.0,0.001]
[1734925202547,0.418771,95518.0,95503.0,0.041892]
[1734925202753,0.0815,95507.0,95503.0,0.041892]
[1734925202976,0.209469,95480.0,95459.0,0.309511]
[1734925203180,0.209469,95480.0,95460.0,0.1013084]
[1734925203423,0.12643139,95490.0,95467.0,0.02093606]
[1734925203764,0.209473,95478.0,95470.0,0.041904]
[1734925204129,0.0487,95498.0,95471.0,0.1013084]
[1734925204331,0.209445,95491.0,95472.0,0.209484]
[1734925204655,0.209456,95486.0,95473.0,0.1013084]
[1734925205540,0.209435,95495.0,95474.0,0.209481]
[1734925205741,0.209435,95495.0,95475.0,0.1013084]
[1734925206057,0.009,95486.0,95475.0,0.1013084]
[1734925206232,0.209435,95495.0,95475.0,0.1013084]
[1734925206453,0.209422,95501.0,95475.0,0.1013084]
[1734925206454,0.209422,95501.0,95477.0,0.209474]
[1734925206656,0.209422,95501.0,95470.0,0.0001611]
[1734925206657,0.209422,95501.0,95478.0,0.1013084]
[1734925206873,0.209436,95495.0,95478.0,0.1013084]
[1734925207484,0.209436,95495.0,95479.0,0.20947]
[1734925207672,0.009,95486.0,95480.0,0.1013084]
[1734925207889,0.209436,95495.0,95481.0,0.209465]
[1734925208047,0.209424,95500.0,95482.0,0.1013084]
[1734925208431,0.209413,95505.0,95488.0,0.209448]
[1734925208638,8.56e-05,95507.0,95489.0,0.1013084]
[1734925208841,8.56e-05,95507.0,95500.0,0.083422]
[1734925209081,8.56e-05,95507.0,95501.0,0.1013084]
[1734925209568,8.56e-05,95507.0,95503.0,0.209416]
[1734925209727,8.56e-05,95507.0,95504.0,0.1013084]
[1734925211073,0.0070856,95507.0,95504.0,0.1013084]
[1734925211449,8.56e-05,95507.0,95492.0,0.023]
[1734925211629,8.56e-05,95507.0,95504.0,0.008]
[1734925211843,0.2104956,95507.0,95504.0,0.008]
[1734925212510,8.56e-05,95507.0,95492.0,0.1013084]
[1734925212714,0.20941,95506.0,95504.0,0.007]
[1734925213892,0.209413,95505.0,95490.0,0.07074819]
[1734925214329,0.209413,95505.0,95504.0,0.008]
[1734925214529,0.209413,95505.0,95489.0,0.0209151]
[1734925214742,0.209434,95496.0,95489.0,0.0209151]
[1734925214952,0.29151,95506.0,95483.0,0.0001611]
[1734925214953,0.0831,95506.0,95483.0,0.0001611]
[1734925215163,0.209439,95493.0,95483.0,0.0001611]
[1734925215457,0.20943,95498.0,95483.0,0.0001611]
[1734925215669,0.20943,95498.0,95483.0,0.2096201]
[1734925216715,0.209415,95504.0,95483.0,0.4190801]
[1734925216894,0.209428,95499.0,95483.0,0.2096201]
[1734925217389,0.209415,95504.0,95483.0,0.0001611]
[1734925217528,0.0013089,95503.0,95483.0,0.0001611]
[1734925217733,0.209419,95502.0,95483.0,0.0001611]
[1734925217956,0.209437,95494.0,95483.0,0.0001611]
[1734925218160,0.20945,95489.0,95483.0,0.0001611]
[1734925218359,0.209437,95494.0,95483.0,0.0001611]
[1734925218360,0.20945,95488.0,95483.0,0.0001611]
[1734925218688,0.418901,95488.0,95483.0,0.0001611]
[1734925220781,0.209439,95494.0,95483.0,0.0001611]
[1734925220989,0.209439,95494.0,95483.0,0.0041611]
[1734925221192,0.209427,95499.0,95483.0,0.0041611]
[1734925221396,0.209427,95499.0,95483.0,0.0001611]
[1734925221616,0.209427,95499.0,95483.0,0.0031611]
[1734925221857,0.209427,95499.0,95484.0,0.209459]
[1734925222254,0.209427,95499.0,95483.0,0.0001611]
[1734925222255,0.418854,95499.0,95483.0,0.0031611]
[1734925222677,0.209417,95503.0,95484.0,0.209459]
[1734925222887,0.02816323,95525.0,95474.0,0.0011279]
[1734925222888,0.1267,95485.0,95474.0,0.0011279]
[1734925223079,0.15140969,95502.0,95437.0,0.1]
[1734925223080,0.1,95462.0,95437.0,0.1]
[1734925223305,0.359518,95457.0,95427.0,0.22784]
[1734925223480,0.4608264,95457.0,95427.0,0.22784]
[1734925223843,0.46624734,95457.0,95427.0,0.22784]
[1734925223973,0.209561,95438.0,95437.0,0.22784]
[1734925224359,0.21498194,95438.0,95437.0,0.22784]
[1734925225276,0.209597,95422.0,95415.0,8.56e-05]
[1734925225519,0.00542094,95438.0,95425.0,0.00016089]
[1734925225520,0.12666071,95430.0,95425.0,0.00016089]
[1734925225689,0.2513084,95429.0,95425.0,0.00016089]
[1734925226098,0.6704664,95429.0,95425.0,0.00016089]
[1734925226496,0.5204664,95429.0,95425.0,0.00016089]
[1734925226694,0.209584,95427.0,95425.0,0.00016089]
[1734925226902,0.1013084,95426.0,95425.0,0.00016089]
[1734925227278,0.10625031,95426.0,95425.0,0.00016089]
[1734925227482,0.10756048,95426.0,95425.0,0.00016089]